bitfinex-derivatives/quotes_ETHF0:USTF0_20250217
["timestamp","ask_amount","ask_price","bid_price","bid_amount"]
[1739802750059,6.1768,2809.5,2809.1,0.71186]
[1739802750244,6.1768,2809.5,2808.7,3.536]
[1739802750556,6.1768,2809.5,2809.2,0.71184]
[1739802750756,2.969,2809.5,2809.4,0.7118]
[1739802751160,2.969,2809.5,2808.8,3.2078]
[1739802751657,2.969,2809.5,2809.4,0.7118]
[1739802751846,2.969,2809.5,2808.8,3.2078]
[1739802752155,2.969,2809.5,2809.4,0.7118]
[1739802752356,2.969,2809.5,2808.8,4.98764]
[1739802752357,2.969,2809.5,2808.8,3.2078]
[1739802752558,2.969,2809.5,2809.2,0.71183]
[1739802752868,2.969,2809.5,2808.8,3.2078]
[1739802753065,2.969,2809.5,2809.2,0.71184]
[1739802753356,0.71193,2808.9,2808.6,6.7345]
[1739802753555,3.2078,2809.1,2808.8,0.71194]
[1739802753860,0.71194,2808.9,2808.6,3.8195]
[1739802754257,3.2078,2809.1,2808.6,3.8195]
[1739802754756,3.3258,2809.0,2808.3,3.8289]
[1739802755054,3.3258,2809.0,2808.0,0.00533485]
[1739802755055,0.7121,2808.3,2808.0,0.00533485]
[1739802755248,3.2078,2808.5,2808.0,0.00533485]
[1739802755249,0.71211,2808.2,2808.0,0.00533485]
[1739802755450,3.2078,2808.5,2808.0,0.00533485]
[1739802755755,6.1768,2808.5,2808.0,0.00533485]
[1739802755951,0.71206,2808.4,2808.0,0.71746485]
[1739802756153,6.1768,2808.5,2808.0,0.00533485]
[1739802756550,6.1768,2808.5,2808.4,0.71205]
[1739802756756,22.702,2808.8,2808.7,0.71198]
[1739802757154,19.733,2808.8,2808.7,0.71198]
[1739802757356,19.733,2808.8,2808.2,3.5508]
[1739802757559,0.71202,2808.6,2808.2,3.5508]
[1739802757850,3.2078,2808.7,2808.6,0.712]
[1739802758357,0.3568,2809.1,2808.4,3.2078]
[1739802758554,0.3568,2809.1,2809.0,0.7119]
[1739802759156,0.3568,2809.1,2808.5,1.78008]
[1739802759352,3.5646,2809.3,2808.5,1.78008]
[1739802759353,4.27644,2809.3,2809.0,0.7119]
[1739802759561,0.71185,2809.2,2809.0,0.7119]
[1739802759760,3.5646,2809.3,2808.4,3.2078]
[1739802759958,0.71188,2809.1,2808.9,0.71191]
[1739802760152,3.5646,2809.3,2808.4,3.2078]
[1739802760357,0.71188,2809.1,2808.4,3.2078]
[1739802760656,0.71194,2808.9,2808.4,3.2078]
[1739802760855,3.2078,2808.9,2808.2,3.5508]
[1739802761062,0.71201,2808.6,2808.2,4.26289]
[1739802761451,0.71207,2808.4,2808.0,0.00533485]
[1739802761861,0.71209,2808.3,2808.1,0.71213]
[1739802762056,0.71213,2808.1,2808.0,0.00533485]
[1739802762553,3.2078,2808.3,2808.0,0.71748485]
[1739802762554,3.91988,2808.3,2808.0,0.71748485]
[1739802762762,3.2078,2808.3,2808.1,0.71213]
[1739802762951,3.2078,2808.3,2808.0,0.00533485]
[1739802764460,0.71213,2808.1,2808.0,0.00533485]
[1739802764658,0.71212,2808.2,2808.0,0.00533485]
[1739802764865,0.71213,2808.1,2808.0,0.00533485]
[1739802765564,3.2078,2808.3,2808.0,0.00533485]
[1739802766164,0.71213,2808.1,2808.0,0.00533485]
[1739802768470,0.71211,2808.2,2808.0,0.00533485]
[1739802769161,3.2078,2808.3,2808.0,0.00533485]
[1739802769367,6.1758,2808.3,2808.0,0.00533485]
[1739802770070,6.1758,2808.3,2808.1,0.71212]
[1739802770471,6.1758,2808.3,2808.0,0.00533485]
[1739802770668,6.1758,2808.3,2808.0,0.71747485]
[1739802770868,0.71212,2808.2,2808.0,0.71747485]
[1739802771069,6.8879,2808.3,2808.0,0.71747485]
[1739802771369,3.2078,2808.3,2808.0,0.00533485]
[1739802771574,3.2078,2808.3,2808.2,0.71211]
[1739802772069,3.2078,2808.3,2808.0,0.00533485]
[1739802772269,0.71213,2808.1,2808.0,0.00533485]
[1739802772465,1.78053,2807.8,2806.9,0.71242]
[1739802772670,1.78053,2807.8,2806.8,2.915]
[1739802772671,3.2078,2807.4,2806.8,3.7987]
[1739802773266,3.92012,2807.4,2806.8,3.7987]
[1739802773475,3.92012,2807.4,2807.0,0.71241]
[1739802773669,3.21313485,2807.4,2807.3,0.71233]
[1739802774266,0.00533485,2807.4,2807.3,0.71233]
[1739802774468,3.2078,2808.0,2807.3,3.7536]
[1739802774667,3.2078,2808.0,2807.7,0.71221]
[1739802774862,3.2078,2808.0,2807.3,5.53443]
[1739802774863,22.709,2808.1,2807.5,3.2078]
[1739802775069,19.741,2808.1,2808.0,0.71216]
[1739802775469,3.5646,2808.6,2808.4,0.71204]
[1739802775663,0.00533485,2808.3,2807.9,1.78046]
[1739802775869,0.00533485,2808.3,2808.2,0.71211]
[1739802776068,0.3568,2809.0,2808.2,0.71211]
[1739802776268,0.3568,2809.0,2808.1,3.2078]
[1739802776572,0.3568,2809.0,2808.8,0.71195]
[1739802777171,0.3568,2809.0,2808.9,0.71193]
[1739802777471,3.5646,2809.2,2808.4,3.2078]
[1739802777472,3.2078,2809.2,2808.4,6.95241629]
[1739802777671,3.2078,2809.2,2809.0,0.7119]
[1739802777672,3.5646,2809.2,2809.0,0.7119]
[1739802777877,3.5646,2809.2,2808.5,3.7097]
[1739802777878,0.71186,2809.2,2808.8,0.71193]
[1739802778070,19.743,2809.3,2808.5,3.7097]
[1739802778275,19.743,2809.3,2809.0,0.71189]
[1739802778574,0.3568,2809.2,2809.0,0.71189]
[1739802778780,19.743,2809.3,2809.0,0.71189]
[1739802778972,19.743,2809.3,2808.8,3.8819]
[1739802779473,19.743,2809.3,2809.0,0.7119]
[1739802779673,19.743,2809.3,2808.9,3.881]
[1739802779674,20.45483,2809.3,2808.9,4.59291]
[1739802779874,19.743,2809.3,2809.2,0.71185]
[1739802780270,19.743,2809.3,2809.1,0.71186]
[1739802780668,19.743,2809.3,2809.2,0.71185]
[1739802780975,3.91958,2809.5,2809.1,0.71186]
[1739802781178,3.2078,2809.2,2807.9,6.1228]
[1739802781383,6.08149519,2809.4,2808.2,3.6959]
[1739802781384,3.2078,2808.9,2808.2,3.6959]
[1739802781582,3.2078,2808.6,2808.2,3.6959]
[1739802781877,0.71209,2808.3,2807.8,3.92533485]
[1739802782083,0.71209,2808.3,2807.8,0.71752485]
[1739802782273,2.966,2808.4,2807.8,0.00533485]
[1739802782470,0.71211,2808.2,2807.8,0.71752485]
[1739802782685,3.2078,2808.3,2807.8,0.00533485]
[1739802782885,0.71211,2808.2,2807.8,0.71752485]
[1739802783080,3.2078,2808.3,2807.8,0.00533485]
[1739802783281,0.71218,2807.9,2807.8,0.00533485]
[1739802784384,2.966,2807.9,2807.8,0.00533485]
[1739802784884,3.67818,2807.9,2807.8,0.00533485]
[1739802785287,2.966,2807.9,2807.8,0.00533485]
[1739802786184,3.2078,2808.3,2807.8,0.00533485]
[1739802786381,6.1738,2808.3,2808.1,0.71213]
[1739802786577,6.1738,2808.3,2808.2,0.71211]
[1739802786784,2.966,2808.3,2808.2,0.71211]
[1739802786985,19.74,2808.6,2808.5,0.71203]
[1739802787889,19.74,2808.6,2808.2,1.78027]
[1739802787890,2.966,2808.9,2808.8,0.71195]
[1739802788184,20.09700001,2809.6,2808.6,3.2078]
[1739802788185,20.80876001,2809.6,2808.6,3.2078]
[1739802788387,20.80876001,2809.6,2808.9,3.2078]
[1739802788388,20.09700001,2809.6,2808.9,3.2078]
[1739802788576,20.09700001,2809.6,2809.0,7.2069]
[1739802788876,20.09700001,2809.6,2809.5,0.71178]
[1739802788877,19.741,2809.6,2809.5,0.71178]
[1739802789079,3.2078,2809.9,2809.2,3.2078]
[1739802789277,2.966,2810.5,2809.8,3.2078]
[1739802789484,2.966,2810.5,2809.9,3.6653]
[1739802789689,2.966,2810.5,2809.9,4.37696]
[1739802789886,3.56380001,2810.6,2809.9,3.6653]
[1739802790075,3.56380001,2810.6,2809.9,6.8731]
[1739802790492,3.56380001,2810.6,2810.2,0.71158]
[1739802790783,3.2078,2810.6,2810.5,0.71152]
[1739802790985,3.2078,2811.3,2810.7,0.71146]
[1739802791183,3.2078,2811.3,2810.7,0.71147]
[1739802791384,3.2078,2811.3,2810.7,0.00533485]
[1739802791586,3.2078,2811.3,2810.9,0.71141]
[1739802791783,3.32100001,2811.6,2810.9,3.2078]
[1739802792290,3.32100001,2811.6,2811.1,0.71137]
[1739802792487,4.03225001,2811.6,2811.0,0.71138]
[1739802792684,4.03225001,2811.6,2811.0,0.71139]
[1739802792890,3.32100001,2811.6,2811.0,0.71139]
[1739802793187,0.71129,2811.5,2810.9,3.91922]
[1739802793386,3.91909,2811.5,2810.8,0.71143]
[1739802793691,3.2078,2811.5,2811.0,0.71138]
[1739802794191,0.71128,2811.5,2810.9,3.9192]
[1739802794392,0.71128,2811.5,2810.9,3.2078]
[1739802794689,0.35600001,2811.5,2810.9,3.2078]
[1739802794887,0.71131,2811.4,2810.9,3.2078]
[1739802795191,0.71131,2811.4,2810.9,3.91921]
[1739802795387,6.1728,2811.6,2810.7,0.00533485]
[1739802795591,6.1728,2811.6,2810.9,3.2078]
[1739802795592,0.71134,2811.3,2810.9,3.2078]
[1739802795888,6.1728,2811.6,2810.9,3.91921]
[1739802795889,0.71131,2811.4,2810.9,3.91921]
[1739802796089,0.71131,2811.4,2810.7,0.00533485]
[1739802796289,0.71134,2811.3,2810.8,0.71145]
[1739802796489,0.71132,2811.4,2810.9,3.2078]
[1739802796786,0.71129,2811.5,2811.0,0.7114]
[1739802796994,0.71131,2811.4,2811.0,0.71139]
[1739802797189,6.1728,2811.6,2810.9,3.2078]
[1739802797490,0.71133,2811.3,2810.9,3.91921]
[1739802797690,0.71131,2811.4,2811.0,0.71139]
[1739802798187,0.35600001,2811.5,2810.9,3.2078]
[1739802798394,22.9468,2811.9,2811.6,0.71124]
[1739802798595,19.739,2811.9,2811.2,3.2078]
[1739802798789,19.739,2811.9,2811.7,0.71122]
[1739802799095,19.739,2811.9,2811.5,3.2078]
[1739802799390,19.739,2811.9,2811.1,3.24773099]
[1739802799391,1.06701001,2812.6,2811.8,3.2078]
[1739802799587,3.56380001,2812.6,2811.9,3.871]
[1739802799787,3.2078,2812.3,2811.4,3.2078]
[1739802799988,3.91897,2812.0,2811.3,3.7604]
[1739802800196,0.71117,2811.9,2811.5,0.71125]
[1739802800490,3.2078,2812.0,2811.1,7.0788]
[1739802800993,2.962,2811.9,2811.1,7.0788]
[1739802801188,3.91896,2812.0,2811.5,0.71125]
[1739802801391,3.2078,2812.0,2811.1,7.0788]
[1739802801889,0.71119,2811.9,2811.5,0.71127]
[1739802802090,0.71119,2811.8,2811.1,7.0788]
[1739802802292,3.2078,2812.0,2811.7,0.7112]
[1739802802587,3.2078,2812.0,2811.1,3.871]
[1739802802793,0.71123,2811.7,2811.1,3.871]
[1739802802993,3.2078,2812.0,2811.5,0.71127]
[1739802803192,3.2078,2812.0,2811.1,3.871]
[1739802803591,6.1688,2812.0,2811.1,3.871]
[1739802803792,0.71124,2811.7,2811.2,0.71133]
[1739802803988,0.7112,2811.8,2811.4,0.71127]
[1739802804187,0.71118,2811.9,2811.5,0.71127]
[1739802804491,6.1688,2812.0,2811.1,3.871]
[1739802804794,0.71128,2811.5,2811.1,4.58235]
[1739802804994,3.2078,2811.7,2811.1,3.871]
[1739802805399,0.71131,2811.4,2811.1,4.58236]
[1739802805595,0.7113,2811.4,2811.1,4.58236]
[1739802805895,0.71129,2811.5,2811.2,0.71135]
[1739802806192,3.2078,2811.7,2811.4,0.71128]
[1739802806383,3.2078,2811.7,2811.3,0.71131]
[1739802806590,0.71126,2811.6,2811.3,0.71131]
[1739802806784,3.91903,2811.7,2811.2,0.1282008]
[1739802806993,3.2078,2811.7,2811.2,0.1282008]
[1739802807394,0.71131,2811.4,2811.2,0.1282008]
[1739802807592,0.71132,2811.3,2811.2,0.1282008]
[1739802808189,3.2078,2811.4,2810.7,3.21313485]
[1739802808398,3.2078,2811.4,2811.1,0.1282008]
[1739802808589,0.71135,2811.2,2811.1,0.1282008]
[1739802808894,3.2078,2811.7,2811.1,1.9066108]
[1739802809092,3.2078,2811.7,2811.2,3.8076]
[1739802809297,3.2078,2811.7,2811.3,3.7305]
[1739802809298,0.71126,2811.6,2811.3,3.7305]
[1739802809492,3.2078,2811.7,2811.3,3.7305]
[1739802809695,0.71126,2811.6,2811.4,0.71128]
[1739802809897,3.2078,2811.7,2811.3,3.7305]
[1739802810193,3.2078,2811.7,2811.1,0.1282008]
[1739802810393,3.2078,2811.7,2811.6,0.71124]
[1739802810799,3.2078,2811.7,2811.5,0.1282008]
[1739802811693,3.2078,2811.7,2811.6,0.71124]
[1739802812197,3.2078,2811.7,2811.5,0.1282008]
[1739802812698,0.71124,2811.6,2811.5,0.1282008]
[1739802812908,3.2078,2811.7,2811.5,0.1282008]
[1739802813404,3.91903,2811.7,2811.5,0.8394608]
[1739802813904,3.91903,2811.7,2811.5,0.1282008]
[1739802813905,3.2078,2811.7,2811.5,0.1282008]
[1739802814110,3.2078,2811.7,2811.6,0.71124]
[1739802814309,3.2078,2811.7,2811.5,0.1282008]
[1739802814505,0.71124,2811.6,2811.5,0.1282008]
[1739802814709,0.71145,2810.8,2810.7,0.00533485]
[1739802814905,7.66013343,2810.8,2810.7,0.00533485]
[1739802815909,2.959,2811.0,2810.7,0.71679485]
[1739802816105,3.67036,2811.2,2810.7,0.00533485]
[1739802816404,3.56380001,2811.6,2810.8,1.77862]
[1739802816603,0.71121,2811.8,2811.5,0.71126]
[1739802816604,1.06721001,2811.8,2811.5,0.71126]
[1739802816798,1.06721001,2811.8,2811.0,1.7785]
[1739802817103,0.35600001,2811.8,2811.1,1.77843]
[1739802817404,3.2078,2811.9,2811.6,0.71123]
[1739802817908,3.56380001,2811.9,2811.6,0.71123]
[1739802818107,3.91898,2811.9,2811.6,0.71123]
[1739802818309,0.7112,2811.8,2811.6,0.71123]
[1739802818503,3.2078,2811.9,2811.2,3.2078]
[1739802818807,0.7112,2811.8,2811.5,0.71126]
[1739802819104,0.7112,2811.8,2811.6,0.71124]
[1739802819305,0.35600001,2812.2,2811.2,3.2078]
[1739802819509,0.35600001,2812.2,2811.3,3.8283]
[1739802819705,0.71119,2811.9,2811.3,3.8283]
[1739802819905,0.35600001,2812.2,2811.3,3.8283]
[1739802820110,4.98567,2812.0,2810.9,10.8802]
[1739802820311,0.71134,2811.3,2810.9,4.5465]
[1739802820609,6.8771,2811.4,2810.9,3.8351]
[1739802820809,6.8771,2811.4,2811.2,0.71134]
[1739802821010,6.1658,2811.4,2811.2,0.71134]
[1739802821308,3.2078,2811.4,2811.3,0.71132]
[1739802821505,3.2078,2811.9,2811.7,0.7112]
[1739802821701,3.2078,2811.9,2811.2,1.77837]
[1739802822307,3.2078,2811.9,2811.1,3.2078]
[1739802822504,0.71122,2811.8,2811.1,3.2078]
[1739802822708,0.71119,2811.8,2811.1,3.2078]
[1739802822909,0.71119,2811.8,2811.5,0.71126]
[1739802823210,2.958,2812.1,2811.1,3.2078]
[1739802823409,0.7112,2811.8,2811.6,0.71122]
[1739802823805,0.71122,2811.7,2811.5,0.71126]
[1739802824006,3.2078,2811.9,2811.0,2.915]
[1739802824212,3.2078,2811.9,2811.4,0.71129]
[1739802824513,3.2078,2811.9,2811.0,2.915]
[1739802824514,0.71121,2811.8,2811.5,0.71127]
[1739802824711,3.2078,2811.9,2811.1,3.2078]
[1739802824903,0.35600001,2812.2,2811.7,3.2078]
[1739802825218,3.31400001,2812.2,2811.4,4.98604]
[1739802825411,0.71112,2812.1,2811.9,0.71116]
[1739802825713,3.31400001,2812.2,2811.5,3.6407]
[1739802825916,0.35600001,2812.2,2812.1,0.71112]
[1739802826212,19.721,2812.3,2812.2,0.71109]
[1739802826610,20.07700001,2812.3,2811.2,3.2078]
[1739802826803,0.71114,2812.1,2811.8,0.71118]
[1739802827009,3.2078,2812.2,2811.5,3.2078]
[1739802827209,3.2078,2812.2,2811.7,0.71121]
[1739802827510,3.2078,2812.2,2811.3,3.6702]
[1739802827709,1.7778,2812.1,2811.3,3.6702]
[1739802827915,0.71126,2811.6,2811.4,0.71128]
[1739802828114,3.2078,2812.0,2811.4,0.71128]
[1739802828313,3.2078,2812.0,2811.5,0.71126]
[1739802828509,3.2078,2812.0,2811.3,3.6702]
[1739802828713,3.2078,2811.7,2811.3,3.6702]
[1739802828912,12.23715142,2811.8,2810.8,3.9367]
[1739802829110,3.2078,2811.4,2811.1,0.71137]
[1739802829312,0.71135,2811.2,2811.0,0.71137]
[1739802829513,1.77814,2811.6,2810.8,3.9367]
[1739802829808,3.2078,2811.5,2810.8,3.9367]
[1739802830012,0.71145,2810.8,2810.3,3.2078]
[1739802830213,3.2078,2810.9,2810.3,3.2078]
[1739802830214,6.1648,2810.9,2810.3,3.2078]
[1739802830416,6.1648,2810.9,2810.5,0.71152]
[1739802830712,6.1648,2810.9,2810.2,3.2078]
[1739802830918,6.1648,2810.9,2810.4,3.732]
[1739802831105,6.1648,2811.3,2810.4,3.732]
[1739802831410,0.71135,2811.2,2810.8,0.71143]
[1739802831810,0.71137,2811.1,2810.8,0.71145]
[1739802832010,0.71137,2811.1,2810.5,3.2078]
[1739802832210,6.1648,2811.3,2810.5,0.7115]
[1739802832415,0.71135,2811.2,2810.8,0.71144]
[1739802832715,6.1648,2811.3,2811.0,0.71138]
[1739802832912,6.1648,2811.3,2811.1,0.71137]
[1739802833107,6.1648,2811.3,2810.8,3.5574]
[1739802833307,0.71142,2810.9,2810.4,4.44354]
[1739802833517,3.2078,2811.0,2810.7,0.71680485]
[1739802833816,3.91921,2811.0,2810.7,0.71679485]
[1739802834017,3.91921,2811.0,2810.7,0.00533485]
[1739802834216,3.2078,2811.0,2810.7,0.00533485]
[1739802834413,3.2078,2811.0,2810.9,0.71142]
[1739802834919,6.1638,2811.4,2810.9,0.71142]
[1739802835108,6.1638,2811.4,2810.7,0.00533485]
[1739802835312,3.2078,2811.0,2810.7,0.00533485]
[1739802835716,3.91921,2811.0,2810.7,0.71679485]
[1739802836317,3.2078,2811.0,2810.7,0.00533485]
[1739802836521,0.71145,2810.8,2810.7,0.00533485]
[1739802836818,3.2078,2811.0,2810.7,0.00533485]
[1739802837122,3.2078,2811.0,2810.8,0.71143]
[1739802837419,2.956,2811.4,2810.7,0.00533485]
[1739802837720,0.71137,2811.2,2810.9,0.71142]
[1739802838019,3.56380001,2811.5,2810.7,0.00533485]
[1739802838320,2.956,2811.4,2810.7,0.00533485]
[1739802838516,0.71139,2811.1,2810.8,0.71145]
[1739802838719,2.956,2811.4,2810.7,0.00533485]
[1739802839017,2.956,2811.4,2811.2,0.71134]
[1739802839328,3.6673,2811.4,2810.8,3.2078]
[1739802839622,3.6673,2811.4,2811.1,0.71136]
[1739802839922,0.71133,2811.3,2811.1,0.71136]
[1739802840123,2.956,2811.4,2810.9,3.9375]
[1739802840318,0.71136,2811.2,2811.0,0.71139]
[1739802840513,2.956,2811.4,2810.9,3.9375]
[1739802840719,2.956,2811.4,2811.3,0.71132]
[1739802841216,0.25,3750.0,2811.2,3.2078]
[1739802841217,3.2078,2811.9,2811.2,3.2078]
[1739802841417,3.2078,2811.9,2811.4,1.77824]
[1739802841623,0.35600001,2812.5,2812.1,0.71109]
[1739802841822,0.71104,2812.4,2812.0,0.71113]
[1739802842118,0.71108,2812.3,2811.9,3.61223485]
[1739802842423,0.71112,2812.1,2811.9,3.61223485]
[1739802842619,0.71114,2812.0,2811.9,0.00533485]
[1739802844017,7.63494,2812.0,2811.9,0.00533485]
[1739802844721,0.71136,2811.2,2810.9,3.6069]
[1739802844920,6.94939982,2811.6,2810.8,3.2078]
[1739802845223,0.71141,2811.0,2810.7,0.71146]
[1739802845411,3.2078,2811.3,2811.1,0.71135]
[1739802845721,20.4302,2811.8,2811.5,0.71126]
[1739802845919,19.719,2811.8,2810.9,1.78389485]
[1739802846123,20.4302,2811.8,2811.5,0.71126]
[1739802846311,20.4302,2811.8,2811.1,3.2078]
[1739802846312,19.719,2811.8,2811.4,3.2078]
[1739802846517,0.00533485,2811.9,2811.4,3.2078]
[1739802846717,0.00533485,2811.9,2811.8,0.71119]
[1739802847426,0.00533485,2811.9,2811.8,3.91899]
[1739802849326,24.52756983,2812.7,2811.8,16.73953387]
[1739802849327,19.719,2812.7,2811.8,16.73953387]
[1739802849526,19.719,2812.7,2812.6,0.71099]
[1739802849727,19.719,2812.7,2812.1,3.2078]
[1739802849728,0.35600001,2813.2,2812.2,2.954]
[1739802849929,3.2078,2813.3,2812.4,3.2078]
[1739802850225,3.2078,2813.3,2813.1,0.71085]
[1739802850432,3.2078,2813.3,2812.7,3.2078]
[1739802850613,23.81459983,2813.6,2812.9,0.71089]
[1739802850614,0.7108,2813.4,2812.9,0.71089]
[1739802851024,23.81459983,2813.6,2812.7,3.2078]
[1739802851218,3.74159982,2813.3,2812.6,0.00533485]
[1739802851418,3.74159982,2813.0,2812.6,0.00533485]
[1739802851625,0.71095,2812.8,2812.6,0.00533485]
[1739802851926,3.74159982,2813.0,2812.6,0.00533485]
[1739802852224,3.2078,2812.8,2812.6,0.00533485]
[1739802852426,0.71097,2812.7,2812.6,0.00533485]
[1739802852621,3.74159982,2813.0,2812.6,0.00533485]
[1739802853120,0.71096,2812.8,2812.6,0.00533485]
[1739802853429,3.74159982,2813.0,2812.6,0.00533485]
[1739802854029,6.94939982,2813.1,2812.6,0.00533485]
[1739802854320,0.71097,2812.7,2812.6,0.00533485]
[1739802854520,4.45256982,2812.7,2812.6,0.00533485]
[1739802854726,4.80856983,2812.7,2812.6,0.00533485]
[1739802854922,0.71097,2812.7,2812.6,0.00533485]
[1739802855322,4.45256982,2812.7,2812.6,0.00533485]
[1739802855627,4.45256982,2812.7,2811.4,3.74159982]
[1739802855628,12.69459982,2812.7,2811.3,3.6643]
[1739802855825,3.2078,2811.9,2811.1,3.2078]
[1739802856026,3.2078,2811.9,2811.3,7.48371375]
[1739802856225,3.2078,2811.9,2811.2,15.00311375]
[1739802856418,3.2078,2811.9,2811.2,3.8473]
[1739802856821,0.71127,2811.6,2811.3,0.00533485]
[1739802857132,0.71127,2811.6,2811.3,0.71664485]
[1739802857427,0.00533485,2811.8,2811.3,0.00533485]
[1739802857733,3.91907,2811.5,2811.3,0.00533485]
[1739802858027,0.71129,2811.4,2811.3,0.00533485]
[1739802858430,3.2078,2811.5,2811.3,0.00533485]
[1739802859018,3.2078,2811.5,2811.3,0.71663485]
[1739802859223,3.2078,2811.5,2811.3,0.00533485]
[1739802859422,3.2078,2811.5,2811.4,0.71129]
[1739802859829,0.00533485,2811.8,2811.3,3.21313485]
[1739802860230,3.2078,2811.7,2811.3,0.00533485]
[1739802860829,3.2078,2811.7,2811.4,0.71129]
[1739802861030,0.71125,2811.6,2811.3,0.71664485]
[1739802861228,3.2078,2811.7,2811.3,0.00533485]
[1739802861629,3.91903,2811.7,2811.4,0.71129]
[1739802861822,3.2078,2811.7,2811.4,0.71129]
[1739802862029,0.71126,2811.6,2811.3,0.71663485]
[1739802862329,3.91903,2811.7,2811.4,0.71129]
[1739802862531,3.2078,2811.7,2811.6,0.71124]
[1739802862733,3.2078,2811.7,2811.3,0.00533485]
[1739802863233,0.71126,2811.6,2811.4,0.71128]
[1739802863534,3.2078,2811.7,2811.5,0.71126]
[1739802863834,3.2078,2811.7,2811.6,0.71124]
[1739802864136,0.00533485,2811.8,2811.7,0.71122]
[1739802865037,3.21313485,2811.8,2811.3,0.00533485]
[1739802865833,3.21313485,2811.8,2811.3,0.71664485]
[1739802865834,0.71128,2811.5,2811.3,0.71664485]
[1739802866034,0.71129,2811.4,2811.3,0.00533485]
[1739802866429,3.21313485,2811.8,2811.3,0.00533485]
[1739802866729,0.00533485,2811.8,2811.6,0.71123]
[1739802867236,0.71123,2811.7,2811.5,0.71126]
[1739802867425,0.00533485,2811.8,2811.3,0.00533485]
[1739802867626,0.71129,2811.4,2811.3,0.00533485]
[1739802867831,3.91909,2811.4,2811.3,0.00533485]
[1739802868232,3.2078,2811.4,2811.3,0.00533485]
[1739802868629,3.91909,2811.4,2811.3,0.00533485]
[1739802871941,6.87009,2811.4,2811.3,0.00533485]
[1739802872144,3.2078,2811.4,2811.3,0.00533485]
[1739802872337,2.951,2811.6,2811.3,0.00533485]
[1739802872640,0.71126,2811.6,2811.3,0.00533485]
[1739802872838,0.71127,2811.5,2811.3,0.00533485]
[1739802873043,0.71127,2811.5,2811.3,0.71664485]
[1739802873346,0.71129,2811.4,2811.3,0.00533485]
[1739802875460,1.06725001,2811.6,2811.4,0.71129]
[1739802875953,0.71129,2811.4,2811.3,0.00533485]
[1739802876550,0.35600001,2811.6,2811.3,0.00533485]
[1739802876753,3.91909,2811.4,2811.3,0.00533485]
[1739802876950,0.71129,2811.4,2811.3,0.00533485]
[1739802877156,0.35600001,2811.6,2811.3,0.00533485]
[1739802877456,6.1578,2811.7,2811.5,0.71127]
[1739802877654,6.1578,2811.7,2811.4,0.71128]
[1739802877956,0.71129,2811.4,2811.3,0.00533485]
[1739802878453,6.1578,2811.7,2811.3,0.00533485]
[1739802878656,0.71129,2811.4,2811.3,0.00533485]
[1739802878852,6.1578,2811.7,2811.3,0.00533485]
[1739802879047,6.1578,2811.7,2811.5,0.71127]
[1739802879242,6.1578,2811.7,2811.3,0.00533485]
[1739802879442,0.71125,2811.6,2811.4,0.71128]
[1739802879648,6.1578,2811.7,2811.3,0.00533485]
[1739802879847,6.1578,2811.7,2811.4,0.71129]
[1739802880049,0.71127,2811.6,2811.3,0.00533485]
[1739802880249,6.1578,2811.7,2811.5,0.71127]
[1739802880445,3.2078,2811.7,2811.6,0.71124]
[1739802881454,0.00533485,2811.8,2811.7,0.71122]
[1739802882856,0.71653485,2811.8,2811.6,3.7495]
[1739802883056,0.00533485,2811.8,2811.7,0.71122]
[1739802883449,0.00533485,2811.8,2811.6,4.46073]
[1739802883649,0.00533485,2811.8,2811.5,3.8617]
[1739802883849,0.71128,2811.5,2811.3,0.71663485]
[1739802884059,0.00533485,2811.8,2811.4,0.71127]
[1739802884060,0.71126,2811.6,2811.4,0.71127]
[1739802884247,0.71129,2811.4,2811.3,0.00533485]
[1739802885054,3.91909,2811.4,2811.3,0.00533485]
[1739802885259,10.60868982,2811.4,2811.3,0.00533485]
[1739802886455,19.45391982,2811.4,2809.5,0.27784605]
[1739802886655,3.2078,2810.4,2809.9,3.69]
[1739802886957,3.74159982,2810.3,2809.7,0.71172]
[1739802887258,0.7116,2810.2,2809.5,7.6421]
[1739802887452,0.71163,2810.1,2809.6,0.71173]
[1739802887657,0.00533485,2810.1,2809.7,0.71171]
[1739802887860,3.92476485,2810.1,2809.7,0.71171]
[1739802888058,3.21313485,2810.1,2809.6,0.00533485]
[1739802888459,3.21313485,2810.1,2809.9,0.71166]
[1739802888655,3.21313485,2810.1,2809.6,0.00533485]
[1739802889053,3.21313485,2810.1,2810.0,0.71165]
[1739802889359,0.00533485,2810.1,2810.0,0.71165]
[1739802890860,0.00533485,2810.1,2809.6,3.21313485]
[1739802891250,0.00533485,2810.1,2810.0,0.71165]
[1739802891861,0.00533485,2810.1,2809.9,0.71165]
[1739802892062,0.00533485,2810.1,2810.0,0.71165]
[1739802893258,4.45303982,2810.9,2810.0,3.2078]
[1739802893259,6.94939982,2810.9,2810.0,3.2078]
[1739802893453,10.60882982,2810.9,2810.5,0.7115]
[1739802893766,0.7115,2810.7,2810.3,0.71157]
[1739802893955,9.89739982,2810.9,2810.0,3.2078]
[1739802894563,0.00533485,2810.7,2810.0,3.2078]
[1739802895059,0.00533485,2810.7,2810.1,1.77907]
[1739802895260,0.00533485,2810.7,2810.2,3.9223]
[1739802895563,0.00533485,2810.7,2810.6,0.7115]
[1739802895962,0.00533485,2810.7,2810.2,3.9223]
[1739802896267,6.94939982,2810.6,2810.0,3.2078]
[1739802896460,0.71166,2810.0,2809.7,3.6115]
[1739802896758,2.947,2810.2,2809.7,3.6115]
[1739802897165,2.947,2810.1,2810.0,0.71163]
[1739802897563,2.947,2810.1,2809.7,3.6115]
[1739802897564,2.947,2810.1,2809.9,0.71166]
[1739802897865,0.71161,2810.2,2809.9,0.71166]